[Event "Championnat d'Europe de Blitz"]
[Date "2024.12.09"]
[White "Ribeiro, Rodrigo"]
[Black "Krallis, Christos"]
[WhiteElo "2143"]
[BlackElo "2383"]
[Round "13.38"]
[Result "0-1"]
[TimeControl "180+2"]

1. d4 {[%emt 00:16:48] [%clk 00:03:04]} Nf6 {[%emt 00:00:12] [%clk 00:02:53]} 2.
c4 {[%clk 00:03:05]} e6 {[%emt 00:00:03] [%clk 00:02:51]} 3. Nf3 {[%clk
00:03:07]} d5 {[%clk 00:02:52]} 4. Nc3 {[%clk 00:03:08]} Be7 {[%emt 00:00:02]
[%clk 00:02:52]} 5. Bf4 {[%emt 00:00:02] [%clk 00:03:08]} O-O {[%emt 00:00:06]
[%clk 00:02:48]} 6. e3 {[%clk 00:03:10]} a6 {[%emt 00:00:05] [%clk 00:02:45]} 7.
cxd5 {[%emt 00:00:01] [%clk 00:03:10]} exd5 {[%emt 00:00:01] [%clk 00:02:46]} 8.
Qc2 {[%clk 00:03:11]} Bd6 {[%emt 00:00:14] [%clk 00:02:34]} 9. Bg5 {[%emt
00:00:10] [%clk 00:03:04]} c6 {[%emt 00:00:02] [%clk 00:02:34]} 10. Bd3 {[%emt
00:00:01] [%clk 00:03:05]} h6 {[%clk 00:02:35]} 11. Bh4 {[%emt 00:00:01] [%clk
00:03:06]} Re8 {[%emt 00:00:05] [%clk 00:02:31]} 12. O-O {[%emt 00:00:02] [%clk
00:03:06]} Nbd7 {[%emt 00:00:01] [%clk 00:02:32]} 13. Rab1 {[%emt 00:00:01]
[%clk 00:03:08]} Nf8 {[%emt 00:00:15] [%clk 00:02:19]} 14. b4 {[%emt 00:00:03]
[%clk 00:03:07]} Bg4 {[%emt 00:00:02] [%clk 00:02:19]} 15. Nd2 {[%emt 00:00:05]
[%clk 00:03:04]} Bd7 {[%emt 00:00:11] [%clk 00:02:09]} 16. Bg3 {[%emt 00:00:01]
[%clk 00:03:05]} Bxg3 {[%emt 00:00:01] [%clk 00:02:09]} 17. hxg3 {[%emt
00:00:01] [%clk 00:03:06]} Ne6 {[%emt 00:00:01] [%clk 00:02:10]} 18. a4 {[%emt
00:00:01] [%clk 00:03:07]} Ng4 {[%emt 00:00:11] [%clk 00:02:00]} 19. b5 {[%emt
00:00:05] [%clk 00:03:05]} axb5 {[%clk 00:02:01]} 20. axb5 {[%emt 00:00:01]
[%clk 00:03:06]} Qg5 {[%emt 00:00:02] [%clk 00:02:01]} 21. Be2 {[%emt 00:00:22]
[%clk 00:02:45]} Nxe3 {[%emt 00:00:03] [%clk 00:02:00]} 22. fxe3 {[%emt
00:00:04] [%clk 00:02:44]} Qxe3+ {[%clk 00:02:01]} 23. Rf2 {[%emt 00:00:03]
[%clk 00:02:43]} Nxd4 {[%emt 00:00:06] [%clk 00:01:57]} 24. Qd3 {[%clk
00:02:44]} Nxe2+ {[%emt 00:00:03] [%clk 00:01:56]} 25. Qxe2 {[%emt 00:00:15]
[%clk 00:02:32]} Qxc3 {[%clk 00:01:57]} 26. Qf3 {[%emt 00:00:11] [%clk
00:02:23]} Qxf3 {[%emt 00:00:09] [%clk 00:01:50]} 27. Nxf3 {[%emt 00:00:08]
[%clk 00:02:17]} c5 {[%emt 00:00:07] [%clk 00:01:44]} 28. b6 {[%emt 00:00:09]
[%clk 00:02:11]} Bf5 {[%emt 00:00:13] [%clk 00:01:33]} 29. Rb5 {[%emt 00:00:05]
[%clk 00:02:08]} Rec8 {[%emt 00:00:12] [%clk 00:01:23]} 30. Ne5 {[%emt 00:00:01]
[%clk 00:02:09]} Be6 {[%emt 00:00:04] [%clk 00:01:21]} 31. Nd3 {[%emt 00:00:10]
[%clk 00:02:01]} c4 {[%emt 00:00:02] [%clk 00:01:21]} 32. Nc5 {[%emt 00:00:01]
[%clk 00:02:02]} c3 {[%emt 00:00:04] [%clk 00:01:19]} 33. Rf1 {[%emt 00:00:32]
[%clk 00:01:32]} d4 {[%emt 00:00:03] [%clk 00:01:18]} 34. Nxb7 {[%emt 00:00:04]
[%clk 00:01:30]} c2 {[%emt 00:00:06] [%clk 00:01:14]} 35. Nc5 {[%emt 00:00:05]
[%clk 00:01:29]} Bc4 {[%emt 00:00:11] [%clk 00:01:03]} 0-1

[Site "Europe Echecs"]

[Event "Championnat d'Europe de Blitz"]
[Date "2024.12.09"]
[White "Goraj, Barbara"]
[Black "Trushko, Andrii"]
[WhiteElo "2178"]
[BlackElo "2143"]
[Round "13.39"]
[Result "0-1"]
[TimeControl "180+2"]

1. e4 {[%emt 00:00:01] [%clk 00:03:02]} c6 {[%clk 00:03:04]} 2. d4 {[%emt
00:00:02] [%clk 00:03:03]} d5 {[%clk 00:03:05]} 3. Nc3 {[%clk 00:03:03]} h6
{[%emt 00:00:01] [%clk 00:03:07]} 4. e5 {[%emt 00:00:12] [%clk 00:02:53]} Bf5
{[%emt 00:00:02] [%clk 00:03:06]} 5. Nf3 {[%emt 00:00:03] [%clk 00:02:53]} e6
{[%emt 00:00:01] [%clk 00:03:07]} 6. Be2 {[%emt 00:00:01] [%clk 00:02:53]} a6
{[%emt 00:00:12] [%clk 00:02:58]} 7. O-O {[%emt 00:00:04] [%clk 00:02:50]} c5
{[%clk 00:02:59]} 8. Be3 {[%emt 00:00:07] [%clk 00:02:45]} cxd4 {[%emt 00:00:01]
[%clk 00:03:00]} 9. Nxd4 {[%emt 00:00:03] [%clk 00:02:44]} Ne7 {[%emt 00:00:01]
[%clk 00:03:01]} 10. f4 {[%emt 00:00:27] [%clk 00:02:19]} Nbc6 {[%emt 00:00:12]
[%clk 00:02:52]} 11. Na4 {[%emt 00:00:35] [%clk 00:01:46]} Nxd4 {[%emt 00:00:06]
[%clk 00:02:48]} 12. Bxd4 {[%emt 00:00:03] [%clk 00:01:45]} Nc6 {[%emt 00:00:01]
[%clk 00:02:49]} 13. Bb6 {[%emt 00:00:14] [%clk 00:01:33]} Qc8 {[%emt 00:00:01]
[%clk 00:02:50]} 14. c3 {[%emt 00:00:07] [%clk 00:01:28]} Be7 {[%emt 00:00:10]
[%clk 00:02:42]} 15. Bd3 {[%emt 00:00:22] [%clk 00:01:08]} Bxd3 {[%emt 00:00:05]
[%clk 00:02:39]} 16. Qxd3 {[%emt 00:00:01] [%clk 00:01:09]} g6 {[%emt 00:00:01]
[%clk 00:02:40]} 17. Rac1 {[%emt 00:00:15] [%clk 00:00:56]} h5 {[%emt 00:00:12]
[%clk 00:02:30]} 18. c4 {[%emt 00:00:27] [%clk 00:00:31]} dxc4 {[%emt 00:00:01]
[%clk 00:02:31]} 19. Rxc4 {[%emt 00:00:03] [%clk 00:00:31]} O-O {[%emt 00:00:02]
[%clk 00:02:31]} 20. Rd1 {[%emt 00:00:08] [%clk 00:00:25]} Qb8 {[%emt 00:00:09]
[%clk 00:02:24]} 21. Qd7 {[%emt 00:00:04] [%clk 00:00:23]} Bd8 {[%clk 00:02:25]}
22. Bc5 {[%emt 00:00:13] [%clk 00:00:12]} b5 {[%emt 00:00:32] [%clk 00:01:54]}
23. Bxf8 {[%emt 00:00:06] [%clk 00:00:08]} bxc4 {[%emt 00:00:06] [%clk
00:01:50]} 24. Qxc6 {[%emt 00:00:04] [%clk 00:00:06]} Kxf8 {[%emt 00:00:01]
[%clk 00:01:51]} 25. Nc5 {[%emt 00:00:03] [%clk 00:00:06]} Bb6 {[%emt 00:00:05]
[%clk 00:01:48]} 26. Kh1 {[%emt 00:00:02] [%clk 00:00:05]} Bxc5 {[%emt 00:00:02]
[%clk 00:01:48]} 27. Qxc5+ {[%clk 00:00:06]} Kg7 {[%clk 00:01:50]} 28. Qxc4
{[%emt 00:00:02] [%clk 00:00:07]} Qxb2 {[%emt 00:00:02] [%clk 00:01:50]} 29. h3
{[%emt 00:00:02] [%clk 00:00:07]} Qf2 {[%emt 00:00:11] [%clk 00:01:41]} 30. Rf1
{[%emt 00:00:04] [%clk 00:00:06]} Qb6 {[%emt 00:00:13] [%clk 00:01:29]} 31. a4
{[%emt 00:00:04] [%clk 00:00:04]} Rd8 {[%emt 00:00:01] [%clk 00:01:31]} 32. Rc1
{[%emt 00:00:02] [%clk 00:00:04]} Rd4 {[%emt 00:00:05] [%clk 00:01:28]} 33. Qc6
{[%emt 00:00:02] [%clk 00:00:04]} Qxc6 {[%emt 00:00:01] [%clk 00:01:29]} 34.
Rxc6 {[%clk 00:00:05]} Rxa4 {[%clk 00:01:30]} 35. g3 {[%emt 00:00:01] [%clk
00:00:06]} h4 {[%clk 00:01:31]} 36. Kg2 {[%emt 00:00:01] [%clk 00:00:07]} Ra2+
{[%emt 00:00:02] [%clk 00:01:31]} 37. Kg1 {[%emt 00:00:03] [%clk 00:00:05]} hxg3
{[%emt 00:00:01] [%clk 00:01:32]} 38. Rc8 {[%emt 00:00:02] [%clk 00:00:06]} a5
{[%emt 00:00:17] [%clk 00:01:16]} 39. Ra8 {[%emt 00:00:02] [%clk 00:00:07]} a4
{[%emt 00:00:01] [%clk 00:01:17]} 40. Kh1 {[%emt 00:00:05] [%clk 00:00:03]} g5
{[%emt 00:00:08] [%clk 00:01:11]} 41. fxg5 {[%emt 00:00:02] [%clk 00:00:03]} Kg6
{[%clk 00:01:13]} 42. h4 {[%emt 00:00:02] [%clk 00:00:04]} Kh5 {[%emt 00:00:02]
[%clk 00:01:12]} 43. Kg1 {[%emt 00:00:03] [%clk 00:00:03]} Kxh4 {[%emt 00:00:02]
[%clk 00:01:12]} 44. Ra7 {[%emt 00:00:02] [%clk 00:00:04]} Kh3 {[%emt 00:00:02]
[%clk 00:01:13]} 0-1

[Site "Europe Echecs"]

[Event "Championnat d'Europe de Blitz"]
[Date "2024.12.09"]
[White "Vuckovic, Aleksandar"]
[Black "Janik, Igor"]
[WhiteElo "2307"]
[BlackElo "2515"]
[Round "13.40"]
[Result "0-1"]
[TimeControl "180+2"]

1. e4 {[%emt 00:00:01]} Nf6 {[%clk 00:03:03]} 2. e5 {[%emt 00:00:03] [%clk
00:03:03]} Nd5 {[%clk 00:03:04]} 3. d4 {[%clk 00:03:04]} d6 {[%clk 00:03:05]} 4.
c4 {[%clk 00:03:05]} Nb6 {[%clk 00:03:07]} 5. exd6 {[%clk 00:03:07]} cxd6 {[%clk
00:03:08]} 6. Be3 {[%emt 00:00:02] [%clk 00:03:07]} g6 {[%clk 00:03:09]} 7. Nf3
{[%clk 00:03:09]} Bg7 {[%clk 00:03:11]} 8. Qc1 {[%clk 00:03:10]} Bg4 {[%emt
00:00:03] [%clk 00:03:10]} 9. Bh6 {[%emt 00:00:05] [%clk 00:03:07]} Bxh6 {[%emt
00:00:04] [%clk 00:03:07]} 10. Qxh6 {[%emt 00:00:02] [%clk 00:03:08]} Bxf3
{[%emt 00:00:01] [%clk 00:03:07]} 11. gxf3 {[%emt 00:00:05] [%clk 00:03:06]} Nc6
{[%clk 00:03:08]} 12. Qg7 {[%emt 00:00:12] [%clk 00:02:57]} Rf8 {[%clk
00:03:10]} 13. Nc3 {[%emt 00:00:01] [%clk 00:02:59]} e6 {[%emt 00:00:03] [%clk
00:03:08]} 14. d5 {[%emt 00:00:12] [%clk 00:02:49]} Ne5 {[%emt 00:00:23] [%clk
00:02:47]} 15. dxe6 {[%emt 00:00:11] [%clk 00:02:40]} fxe6 {[%emt 00:00:20]
[%clk 00:02:29]} 16. O-O-O {[%emt 00:00:12] [%clk 00:02:29]} Qe7 {[%clk
00:02:30]} 17. Qh6 {[%emt 00:00:09] [%clk 00:02:21]} O-O-O {[%emt 00:00:03]
[%clk 00:02:30]} 18. Be2 {[%emt 00:00:15] [%clk 00:02:09]} Nexc4 {[%emt
00:00:06] [%clk 00:02:26]} 19. a4 {[%emt 00:00:22] [%clk 00:01:49]} d5 {[%emt
00:00:03] [%clk 00:02:25]} 20. Kc2 {[%emt 00:00:17] [%clk 00:01:35]} Qb4 {[%emt
00:00:06] [%clk 00:02:21]} 21. b3 {[%emt 00:00:03] [%clk 00:01:33]} Na3+ {[%emt
00:00:03] [%clk 00:02:20]} 22. Kb2 {[%emt 00:00:02] [%clk 00:01:33]} Nbc4+
{[%emt 00:00:02] [%clk 00:02:21]} 23. Bxc4 {[%emt 00:00:08] [%clk 00:01:26]}
Nxc4+ {[%emt 00:00:01] [%clk 00:02:21]} 24. Kc2 {[%emt 00:00:02] [%clk
00:01:27]} Rxf3 {[%emt 00:00:01] [%clk 00:02:22]} 0-1

[Site "Europe Echecs"]

[Event "Championnat d'Europe de Blitz"]
[Date "2024.12.09"]
[White "Saraci, Nderim"]
[Black "Andonovski, Ljubisa"]
[WhiteElo "2431"]
[BlackElo "2253"]
[Round "13.41"]
[Result "1/2-1/2"]
[TimeControl "180+2"]

1. d4 {[%clk 00:03:02]} Nf6 {[%emt 00:00:06] [%clk 00:02:57]} 2. c4 {[%emt
00:00:02] [%clk 00:03:03]} e6 {[%emt 00:00:03] [%clk 00:02:56]} 3. Nf3 {[%emt
00:00:02] [%clk 00:03:03]} Bb4+ {[%emt 00:00:02] [%clk 00:02:56]} 4. Nc3 {[%emt
00:00:02] [%clk 00:03:03]} O-O {[%emt 00:00:06] [%clk 00:02:52]} 5. Qc2 {[%emt
00:00:02] [%clk 00:03:03]} c5 {[%emt 00:00:11] [%clk 00:02:43]} 6. Bg5 {[%emt
00:00:09] [%clk 00:02:56]} h6 {[%emt 00:00:03] [%clk 00:02:41]} 7. Bh4 {[%emt
00:00:02] [%clk 00:02:57]} cxd4 {[%emt 00:00:05] [%clk 00:02:39]} 8. Nxd4 {[%emt
00:00:02] [%clk 00:02:56]} Nc6 {[%emt 00:00:02] [%clk 00:02:39]} 9. e3 {[%emt
00:00:09] [%clk 00:02:50]} d5 {[%emt 00:00:27] [%clk 00:02:13]} 10. a3 {[%emt
00:00:50] [%clk 00:02:02]} Nxd4 {[%emt 00:00:22] [%clk 00:01:53]} 11. exd4
{[%emt 00:00:03] [%clk 00:02:02]} Bxc3+ {[%emt 00:00:11] [%clk 00:01:44]} 12.
bxc3 {[%emt 00:00:07] [%clk 00:01:57]} dxc4 {[%emt 00:00:14] [%clk 00:01:32]}
13. Bxc4 {[%emt 00:00:09] [%clk 00:01:50]} b6 {[%emt 00:00:01] [%clk 00:01:33]}
14. O-O {[%emt 00:00:28] [%clk 00:01:24]} Bb7 {[%emt 00:00:02] [%clk 00:01:33]}
15. Rfd1 {[%emt 00:00:09] [%clk 00:01:15]} Qc7 {[%emt 00:00:21] [%clk 00:01:15]}
16. Bf1 {[%emt 00:00:03] [%clk 00:01:14]} Nd5 {[%emt 00:00:20] [%clk 00:00:57]}
17. c4 {[%emt 00:00:06] [%clk 00:01:11]} Rac8 {[%emt 00:00:18] [%clk 00:00:41]}
18. Rac1 {[%emt 00:00:01] [%clk 00:01:11]} Qf4 {[%emt 00:00:28] [%clk 00:00:15]}
19. Bg3 {[%emt 00:00:03] [%clk 00:01:10]} Qg4 {[%emt 00:00:01] [%clk 00:00:15]}
20. Qa4 {[%emt 00:00:28] [%clk 00:00:44]} Nf4 {[%emt 00:00:05] [%clk 00:00:12]}
21. Qxa7 {[%emt 00:00:15] [%clk 00:00:31]} Ba8 {[%emt 00:00:09] [%clk 00:00:05]}
22. Bxf4 {[%emt 00:00:04] [%clk 00:00:29]} Qxf4 {[%clk 00:00:07]} 23. Qxb6
{[%emt 00:00:02] [%clk 00:00:29]} Rfd8 {[%emt 00:00:05] [%clk 00:00:03]} 24. Qb2
{[%emt 00:00:07] [%clk 00:00:24]} Rb8 {[%emt 00:00:02] [%clk 00:00:03]} 25. Qd2
{[%clk 00:00:25]} Qg4 {[%emt 00:00:02] [%clk 00:00:03]} 26. h3 {[%emt 00:00:03]
[%clk 00:00:25]} Qg6 {[%clk 00:00:04]} 27. Rc3 {[%emt 00:00:06] [%clk 00:00:21]}
Rb6 {[%emt 00:00:02] [%clk 00:00:04]} 28. Rg3 {[%emt 00:00:03] [%clk 00:00:19]}
Qf6 {[%emt 00:00:01] [%clk 00:00:06]} 29. c5 {[%emt 00:00:03] [%clk 00:00:18]}
Rb7 {[%emt 00:00:03] [%clk 00:00:05]} 30. Rf3 {[%emt 00:00:03] [%clk 00:00:18]}
Qh4 {[%emt 00:00:02] [%clk 00:00:04]} 31. Qf4 {[%emt 00:00:07] [%clk 00:00:13]}
Qh5 {[%emt 00:00:02] [%clk 00:00:04]} 32. Rfd3 {[%emt 00:00:03] [%clk 00:00:12]}
Rbd7 {[%emt 00:00:01] [%clk 00:00:05]} 33. Qe3 {[%emt 00:00:04] [%clk 00:00:11]}
Rd5 {[%emt 00:00:02] [%clk 00:00:05]} 34. Be2 {[%emt 00:00:01] [%clk 00:00:12]}
Qh4 {[%emt 00:00:01] [%clk 00:00:05]} 35. Bf3 {[%emt 00:00:01] [%clk 00:00:12]}
Rg5 {[%emt 00:00:03] [%clk 00:00:05]} 36. Bxa8 {[%emt 00:00:02] [%clk 00:00:12]}
Rxa8 {[%clk 00:00:06]} 37. d5 {[%emt 00:00:02] [%clk 00:00:12]} exd5 {[%emt
00:00:01] [%clk 00:00:07]} 38. Rxd5 {[%emt 00:00:02] [%clk 00:00:12]} Rxd5
{[%emt 00:00:03] [%clk 00:00:06]} 39. Rxd5 {[%emt 00:00:02] [%clk 00:00:14]} Rb8
{[%clk 00:00:08]} 40. Rd1 {[%emt 00:00:02] [%clk 00:00:13]} Qa4 {[%emt 00:00:03]
[%clk 00:00:08]} 41. Re1 {[%emt 00:00:03] [%clk 00:00:12]} Ra8 {[%emt 00:00:02]
[%clk 00:00:07]} 42. Rc1 {[%emt 00:00:03] [%clk 00:00:11]} Qxa3 {[%emt 00:00:02]
[%clk 00:00:07]} 43. Qxa3 {[%emt 00:00:01] [%clk 00:00:12]} Rxa3 {[%clk
00:00:08]} 44. c6 {[%emt 00:00:02] [%clk 00:00:12]} Ra8 {[%clk 00:00:09]} 45. f4
{[%emt 00:00:02] [%clk 00:00:13]} Kf8 {[%clk 00:00:10]} 46. Kf2 {[%emt 00:00:01]
[%clk 00:00:14]} Ke7 {[%clk 00:00:11]} 47. Rd1 {[%clk 00:00:15]} Rc8 {[%emt
00:00:02] [%clk 00:00:11]} 48. Rc1 {[%emt 00:00:04] [%clk 00:00:14]} Kd6 {[%clk
00:00:12]} 49. Rd1+ {[%emt 00:00:04] [%clk 00:00:12]} Kxc6 {[%clk 00:00:13]} 50.
Kf3 {[%clk 00:00:13]} Rb8 {[%emt 00:00:02] [%clk 00:00:13]} 51. Kg4 {[%emt
00:00:02] [%clk 00:00:14]} g6 {[%clk 00:00:14]} 52. h4 {[%emt 00:00:02] [%clk
00:00:14]} Rb5 {[%emt 00:00:01] [%clk 00:00:15]} 53. Rd8 {[%emt 00:00:02] [%clk
00:00:14]} h5+ {[%clk 00:00:16]} 54. Kf3 {[%clk 00:00:15]} Kc7 {[%emt 00:00:01]
[%clk 00:00:17]} 55. Rd3 {[%emt 00:00:01] [%clk 00:00:16]} Rb6 {[%emt 00:00:02]
[%clk 00:00:17]} 56. g3 {[%emt 00:00:03] [%clk 00:00:15]} Rd6 {[%emt 00:00:02]
[%clk 00:00:17]} 57. Re3 {[%emt 00:00:05] [%clk 00:00:12]} Kd7 {[%clk 00:00:18]}
58. f5 {[%emt 00:00:02] [%clk 00:00:12]} Rd4 {[%emt 00:00:01] [%clk 00:00:18]}
59. Re5 {[%emt 00:00:03] [%clk 00:00:12]} Kd6 {[%emt 00:00:01] [%clk 00:00:18]}
60. Re4 {[%clk 00:00:13]} Rd5 {[%emt 00:00:03] [%clk 00:00:17]} 61. fxg6 {[%emt
00:00:03] [%clk 00:00:12]} fxg6 {[%clk 00:00:18]} 62. Re8 {[%emt 00:00:02] [%clk
00:00:12]} Rf5+ {[%emt 00:00:01] [%clk 00:00:19]} 63. Ke4 {[%clk 00:00:13]} Rf1
{[%clk 00:00:20]} 64. Rg8 {[%emt 00:00:04] [%clk 00:00:11]} Rf6 {[%emt 00:00:02]
[%clk 00:00:20]} 65. Re8 {[%emt 00:00:01] [%clk 00:00:12]} Kd7 {[%emt 00:00:01]
[%clk 00:00:21]} 66. Re5 {[%emt 00:00:02] [%clk 00:00:12]} Kd6 {[%emt 00:00:02]
[%clk 00:00:21]} 67. Ra5 {[%emt 00:00:02] [%clk 00:00:13]} Ke7 {[%emt 00:00:01]
[%clk 00:00:22]} 68. Ra7+ {[%emt 00:00:02] [%clk 00:00:13]} Kf8 {[%clk
00:00:23]} 69. Ra5 {[%emt 00:00:03] [%clk 00:00:12]} Kg7 {[%clk 00:00:24]} 70.
Ra3 {[%emt 00:00:03] [%clk 00:00:12]} Rf1 {[%emt 00:00:02] [%clk 00:00:23]} 71.
Rf3 {[%emt 00:00:04]} Rxf3 {[%emt 00:00:01] [%clk 00:00:23]} 72. Kxf3 {[%clk
00:00:13]} Kf7 {[%emt 00:00:03] [%clk 00:00:22]} 73. Kf4 {[%emt 00:00:02] [%clk
00:00:13]} Kf6 {[%clk 00:00:24]} 74. g4 {[%clk 00:00:15]} hxg4 {[%clk 00:00:25]}
75. Kxg4 {[%emt 00:00:01] [%clk 00:00:16]} Kf7 {[%clk 00:00:26]} 76. h5 {[%clk
00:00:17]} gxh5+ {[%emt 00:00:02]} 77. Kxh5 {[%clk 00:00:17]} 1/2-1/2

[Site "Europe Echecs"]

[Event "Championnat d'Europe de Blitz"]
[Date "2024.12.09"]
[White "Reprintsev, Alexander"]
[Black "Baskin, Robert"]
[WhiteElo "2230"]
[BlackElo "2442"]
[Round "13.42"]
[Result "0-1"]
[TimeControl "180+2"]

1. e4 {[%clk 00:03:03]} e5 {[%emt 00:00:02] [%clk 00:03:03]} 2. f4 {[%emt
00:00:02] [%clk 00:03:02]} exf4 {[%emt 00:00:06] [%clk 00:02:59]} 3. Bc4 {[%clk
00:03:03]} d5 {[%emt 00:00:05] [%clk 00:02:57]} 4. Bxd5 {[%emt 00:00:01] [%clk
00:03:04]} Nf6 {[%emt 00:00:04] [%clk 00:02:55]} 5. Nc3 {[%emt 00:00:01] [%clk
00:03:04]} Nxd5 {[%emt 00:00:22] [%clk 00:02:35]} 6. Nxd5 {[%emt 00:00:03] [%clk
00:03:03]} g5 {[%emt 00:00:35] [%clk 00:02:03]} 7. h4 {[%emt 00:00:20] [%clk
00:02:45]} c6 {[%emt 00:00:05] [%clk 00:02:00]} 8. Nc3 {[%emt 00:00:02] [%clk
00:02:45]} Bc5 {[%emt 00:00:05] [%clk 00:01:57]} 9. Qh5 {[%emt 00:00:46] [%clk
00:02:00]} Qd4 {[%emt 00:00:19] [%clk 00:01:41]} 10. Qf3 {[%emt 00:00:23] [%clk
00:01:39]} Bg4 {[%emt 00:00:11] [%clk 00:01:33]} 11. Qf1 {[%emt 00:00:22] [%clk
00:01:18]} f6 {[%emt 00:00:24] [%clk 00:01:11]} 12. Nf3 {[%emt 00:00:02] [%clk
00:01:19]} Qd8 {[%emt 00:00:07] [%clk 00:01:06]} 13. Qc4 {[%emt 00:00:07] [%clk
00:01:14]} Nd7 {[%emt 00:00:07] [%clk 00:01:01]} 14. hxg5 {[%emt 00:00:08] [%clk
00:01:07]} fxg5 {[%emt 00:00:08] [%clk 00:00:55]} 15. d4 {[%emt 00:00:07] [%clk
00:01:02]} Bb6 {[%emt 00:00:05] [%clk 00:00:52]} 16. Bd2 {[%emt 00:00:05] [%clk
00:00:59]} Qe7 {[%emt 00:00:03] [%clk 00:00:50]} 17. O-O-O {[%emt 00:00:04]
[%clk 00:00:57]} O-O-O {[%emt 00:00:21] [%clk 00:00:32]} 18. e5 {[%emt 00:00:09]
[%clk 00:00:50]} Kb8 {[%emt 00:00:03] [%clk 00:00:31]} 19. Ne4 {[%emt 00:00:02]
[%clk 00:00:50]} h6 {[%emt 00:00:02] [%clk 00:00:31]} 20. Nd6 {[%emt 00:00:02]
[%clk 00:00:50]} Be6 {[%emt 00:00:02] [%clk 00:00:31]} 21. Qd3 {[%emt 00:00:02]
[%clk 00:00:49]} c5 {[%emt 00:00:09] [%clk 00:00:25]} 22. Bc3 {[%emt 00:00:11]
[%clk 00:00:39]} cxd4 {[%emt 00:00:04] [%clk 00:00:23]} 23. Bxd4 {[%emt
00:00:01] [%clk 00:00:40]} Nc5 {[%emt 00:00:04] [%clk 00:00:22]} 24. Qc3 {[%emt
00:00:12] [%clk 00:00:30]} Qc7 {[%emt 00:00:12] [%clk 00:00:12]} 25. Nb5 {[%emt
00:00:07] [%clk 00:00:25]} Qc6 {[%emt 00:00:01] [%clk 00:00:13]} 26. Nd6 {[%emt
00:00:05] [%clk 00:00:23]} a6 {[%emt 00:00:06] [%clk 00:00:09]} 27. a3 {[%emt
00:00:03] [%clk 00:00:22]} Bd5 {[%emt 00:00:06] [%clk 00:00:05]} 28. Kb1 {[%emt
00:00:03] [%clk 00:00:21]} Ba7 {[%emt 00:00:01] [%clk 00:00:06]} 29. Qb4 {[%emt
00:00:08] [%clk 00:00:15]} Ne6 {[%emt 00:00:02] [%clk 00:00:05]} 30. Bxa7+
{[%emt 00:00:02] [%clk 00:00:15]} Kxa7 {[%emt 00:00:02] [%clk 00:00:05]} 31. Nd4
{[%emt 00:00:02] [%clk 00:00:15]} Qb6 {[%emt 00:00:03] [%clk 00:00:04]} 32. Nxe6
{[%emt 00:00:09] [%clk 00:00:08]} Qxb4 {[%emt 00:00:01] [%clk 00:00:05]} 33.
axb4 {[%emt 00:00:02] [%clk 00:00:08]} Bxe6 {[%emt 00:00:01] [%clk 00:00:07]}
34. c4 {[%emt 00:00:02] [%clk 00:00:08]} h5 {[%emt 00:00:02] [%clk 00:00:06]}
35. c5 {[%emt 00:00:02] [%clk 00:00:07]} h4 {[%emt 00:00:01] [%clk 00:00:08]}
36. Rdf1 {[%emt 00:00:07] [%clk 00:00:00]} 0-1

[Site "Europe Echecs"]

[Event "Championnat d'Europe de Blitz"]
[Date "2024.12.09"]
[White "Stankovic, Milos"]
[Black "Podlesnik, Bogdan"]
[WhiteElo "2462"]
[BlackElo "2288"]
[Round "13.43"]
[Result "1/2-1/2"]
[TimeControl "180+2"]

1. d4 {[%emt 00:00:02] [%clk 00:03:01]} Nf6 {[%emt 00:00:01] [%clk 00:03:03]} 2.
Nf3 {[%emt 00:00:01] [%clk 00:03:02]} e6 {[%clk 00:03:05]} 3. Bg5 {[%emt
00:00:02] [%clk 00:03:02]} c5 {[%emt 00:00:01] [%clk 00:03:06]} 4. e3 {[%emt
00:00:05] [%clk 00:02:59]} Qb6 {[%emt 00:00:02] [%clk 00:03:07]} 5. Nbd2 {[%emt
00:00:21] [%clk 00:02:39]} Qxb2 {[%emt 00:00:03] [%clk 00:03:06]} 6. Bd3 {[%emt
00:00:11] [%clk 00:02:30]} d5 {[%emt 00:00:04] [%clk 00:03:05]} 7. Bxf6 {[%emt
00:00:02] [%clk 00:02:30]} gxf6 {[%clk 00:03:06]} 8. O-O {[%emt 00:00:08] [%clk
00:02:24]} c4 {[%emt 00:00:06] [%clk 00:03:02]} 9. Be2 {[%clk 00:02:25]} f5
{[%emt 00:00:09] [%clk 00:02:56]} 10. Ne5 {[%emt 00:00:06] [%clk 00:02:21]} Nc6
{[%emt 00:00:18] [%clk 00:02:39]} 11. Ndf3 {[%emt 00:00:04] [%clk 00:02:20]} f6
{[%emt 00:00:30] [%clk 00:02:11]} 1/2-1/2

[Site "Europe Echecs"]